bitfinex-derivatives/quotes_SOLF0:USTF0_20260304
["timestamp","ask_amount","ask_price","bid_price","bid_amount"]
[1772656117012,8.87684046,93.669,93.6,9.01818165]
[1772656117618,8.87684046,93.669,93.601,9.01818165]
[1772656117818,8.87684046,93.669,93.614,9.61]
[1772656118016,8.87684046,93.669,93.542,32.11]
[1772656118017,8.87684046,93.659,93.551,9.01818165]
[1772656118221,8.87684046,93.652,93.567,9.615]
[1772656118519,8.87684046,93.619,93.553,9.01818165]
[1772656119419,8.87684046,93.619,93.557,9.616]
[1772656120527,8.87684046,93.619,93.547,9.617]
[1772656120721,8.87684046,93.599,93.536,9.01818165]
[1772656121718,8.87684046,93.599,93.501,9.01818165]
[1772656121925,32.11,93.598,93.527,9.619]
[1772656122126,8.87684046,93.597,93.527,9.619]
[1772656122728,8.87684046,93.597,93.518,9.01818165]
[1772656123222,8.87684046,93.579,93.518,9.01818165]
[1772656124523,8.87684046,93.579,93.519,9.62]
[1772656125024,8.87684046,93.579,93.523,9.619]
[1772656125328,8.87684046,93.577,93.481,9.01818165]
[1772656125522,8.87684046,93.539,93.482,9.624]
[1772656126225,40.98684046,93.559,93.482,9.01818165]
[1772656126425,8.87684046,93.559,93.482,9.01818165]
[1772656126818,8.87684046,93.557,93.482,9.01818165]
[1772656128029,8.87684046,93.557,93.492,9.623]
[1772656128223,8.87684046,93.557,93.482,9.01818165]
[1772656129524,8.87684046,93.557,93.492,9.623]
[1772656131029,8.15925196,93.539,93.482,9.01818165]
[1772656131622,8.15925196,93.539,93.451,8.466101]
[1772656132020,8.15925196,93.532,93.47,9.625]
[1772656133928,8.15925196,93.528,93.451,8.466101]
[1772656134120,8.15925196,93.522,93.451,8.466101]
[1772656134630,8.15925196,93.522,93.461,8.466101]
[1772656135229,8.15925196,93.536,93.47,8.466101]
[1772656135930,8.15925196,93.532,93.441,8.466101]
[1772656137426,8.15925196,93.532,93.472,9.625]
[1772656141129,8.15925196,93.532,93.467,8.466101]
[1772656141428,8.15925196,93.517,93.449,8.466101]
[1772656141829,8.15925196,93.517,93.451,9.627]
[1772656142030,8.15925196,93.517,93.449,8.466101]
[1772656142431,3.29502708,93.5,93.449,8.466101]
[1772656143233,3.29502708,93.5,93.45,9.627]
[1772656143421,3.29502708,93.47,93.424,1.86146526]
[1772656144024,3.29502708,93.47,93.424,10.32756626]
[1772656144221,8.15925196,93.489,93.431,8.466101]
[1772656144531,3.29502708,93.5,93.441,8.466101]
[1772656144731,11.45427904,93.5,93.441,8.466101]
[1772656145030,3.29502708,93.49,93.441,8.466101]
[1772656145423,3.29502708,93.49,93.449,9.627]
[1772656145834,3.29502708,93.49,93.441,8.466101]
[1772656146228,3.29502708,93.48,93.43,3.29502708]
[1772656146530,3.29502708,93.48,93.424,10.32756626]
[1772656147431,3.29502708,93.48,93.433,9.629]
[1772656149035,8.15925196,93.479,93.425,50.0]
[1772656149535,3.29502708,93.47,93.425,50.0]
[1772656149833,3.29502708,93.47,93.426,50.0]
[1772656150234,3.29502708,93.47,93.427,9.629]
[1772656150433,9.89748248,93.561,93.426,50.0]
[1772656150434,3.29502708,93.49,93.44,3.29502708]
[1772656150633,3.29502708,93.49,93.441,8.466101]
[1772656150826,8.15925196,93.496,93.442,8.466101]
[1772656151028,11.45427904,93.51,93.451,8.466101]
[1772656151231,8.15925196,93.509,93.451,8.466101]
[1772656152434,3.29502708,93.5,93.457,9.626]
[1772656153031,32.11,93.561,93.465,9.625]
[1772656153237,3.29502708,93.54,93.49,3.29502708]
[1772656153532,3.29502708,93.53,93.481,8.466101]
[1772656154433,8.15925196,93.539,93.481,8.466101]
[1772656155137,8.15925196,93.539,93.482,8.466101]
[1772656156537,8.15925196,93.539,93.489,9.623]
[1772656156838,8.15925196,93.539,93.49,8.466101]
[1772656158438,8.15925196,93.539,93.491,9.623]
[1772656159033,8.15925196,93.539,93.471,8.33500056]
[1772656159837,8.15925196,93.539,93.482,8.33500056]
[1772656161636,8.53443864,93.537,93.466,8.33500056]
[1772656161839,8.53443864,93.537,93.399,177.0]
[1772656161840,8.53443864,93.509,93.425,8.33500056]
[1772656162040,8.53443864,93.507,93.425,8.33500056]
[1772656162640,8.53443864,93.507,93.451,8.33500056]
[1772656164144,12.26,93.506,93.451,8.33500056]
[1772656166340,20.06852355,93.506,93.451,8.33500056]
[1772656166534,7.80852355,93.505,93.451,8.33500056]
[1772656166735,7.80852355,93.505,93.44,9.628]
[1772656166942,7.80852355,93.505,93.44,18.18156737]
[1772656167447,7.80852355,93.505,93.442,8.55356737]
[1772656167645,7.80852355,93.505,93.441,50.0]
[1772656167646,7.80852355,93.505,93.444,8.55356737]
[1772656168245,7.80852355,93.505,93.446,9.627]
[1772656168437,7.80852355,93.505,93.444,8.55356737]
[1772656171744,7.80852355,93.505,93.446,8.55356737]
[1772656172139,7.80852355,93.505,93.45,9.627]
[1772656172640,7.80852355,93.504,93.45,9.627]
[1772656172845,7.80852355,93.504,93.446,8.01789422]
[1772656174548,3.29548842,93.49,93.446,8.01789422]
[1772656175758,3.29548842,93.5,93.446,8.01789422]
[1772656175959,3.29548842,93.5,93.456,8.30624471]
[1772656176757,3.29548842,93.5,93.46,17.86483502]
[1772656176956,7.80852355,93.504,93.46,17.86483502]
[1772656178458,3.29548842,93.49,93.451,9.627]
[1772656178959,7.80852355,93.499,93.451,9.627]
[1772656179665,3.29548842,93.48,93.445,7.71699024]
[1772656179961,3.29548842,93.47,93.427,7.68500643]
[1772656181056,3.29548842,93.48,93.429,7.68182195]
[1772656181458,3.29548842,93.49,93.441,7.68182195]
[1772656181858,3.29548842,93.48,93.441,7.68182195]
[1772656182858,11.10401197,93.48,93.43,9.629]
[1772656183060,7.80852355,93.479,93.43,9.629]
[1772656183961,7.80852355,93.479,93.431,7.7254404]
[1772656184367,7.80852355,93.469,93.426,50.0]
[1772656184660,7.80852355,93.469,93.425,50.0]
[1772656185863,7.80852355,93.469,93.426,9.629]
[1772656187658,7.80852355,93.469,93.425,50.0]
[1772656188563,7.80852355,93.469,93.426,50.0]
[1772656189564,7.80852355,93.469,93.426,59.629]
[1772656191462,7.80852355,93.469,93.426,9.629]
[1772656191760,8.03376269,93.492,93.43,3.29548842]
[1772656191962,7.26756567,93.483,93.431,6.77442869]
[1772656192160,3.29548842,93.48,93.431,6.77442869]
[1772656192463,7.26756567,93.479,93.431,16.40342869]
[1772656194260,3.29548842,93.47,93.431,6.77442869]
[1772656195065,7.26756567,93.479,93.431,6.77442869]
[1772656196263,7.26756567,93.499,93.441,6.72643534]
[1772656196666,3.29548842,93.49,93.441,6.72643534]
[1772656197469,3.29548842,93.49,93.442,16.35030489]
[1772656197665,3.29548842,93.49,93.443,6.72230489]
[1772656197869,7.26756567,93.499,93.443,6.72230489]
[1772656198077,3.29548842,93.49,93.443,6.72230489]
[1772656198765,8.02767562,93.504,93.451,6.71692473]
[1772656198966,7.26756567,93.511,93.47,3.29548842]
[1772656199173,7.26756567,93.511,93.461,6.71692473]
[1772656199568,3.29548842,93.51,93.461,6.71692473]
[1772656199769,10.56305409,93.51,93.461,6.71692473]
[1772656200162,7.26756567,93.489,93.434,9.629]
[1772656200366,3.29548842,93.47,93.428,6.48891046]
[1772656201469,3.29548842,93.48,93.428,6.48891046]
[1772656204266,10.56305409,93.48,93.428,6.48891046]
[1772656205070,12.11,93.479,93.428,6.48891046]
[1772656205272,3.29548842,93.46,93.413,6.3514802]
[1772656205466,10.56305409,93.46,93.413,6.3514802]
[1772656206571,10.56305409,93.46,93.414,50.0]
[1772656207473,10.56305409,93.46,93.415,6.35710724]
[1772656208572,3.29548842,93.44,93.392,6.38230063]
[1772656209073,3.29548842,93.45,93.403,6.37891605]
[1772656209871,3.29548842,93.45,93.4,3.29548842]
[1772656209872,7.9956872,93.466,93.421,6.37557908]
[1772656210174,7.26756567,93.471,93.421,6.37557908]
[1772656210375,3.29548842,93.47,93.422,6.40244399]
[1772656211178,3.29548842,93.46,93.422,6.40244399]
[1772656211476,7.26756567,93.471,93.422,6.40244399]
[1772656211477,3.29548842,93.45,93.422,6.40244399]
[1772656211677,3.29548842,93.45,93.401,6.40856931]
[1772656212076,3.29548842,93.47,93.411,6.42842827]
[1772656212278,3.29548842,93.47,93.41,3.29548842]
[1772656212279,3.29548842,93.47,93.421,6.42842827]
[1772656212678,3.29548842,93.46,93.421,6.42842827]
[1772656214175,7.26756567,93.439,93.387,6.54326889]
[1772656214377,3.29548842,93.43,93.387,6.54326889]
[1772656215475,3.29548842,93.43,93.388,9.633]
[1772656215977,3.29548842,93.43,93.387,6.54326889]
[1772656216481,3.2999283,93.43,93.387,6.54326889]
[1772656216778,3.2999283,93.43,93.387,16.17626889]
[1772656220187,3.2999283,93.42,93.387,6.54326889]
[1772656220481,3.2999283,93.42,93.372,7.2238594]
[1772656220683,8.0999027,93.419,93.357,7.2238594]
[1772656220883,8.0999027,93.419,93.32,19.281]
[1772656220884,8.0999027,93.419,93.371,7.21174212]
[1772656221081,9.89748248,93.457,93.381,7.21126237]
[1772656221082,8.0999027,93.436,93.381,7.21126237]
[1772656221285,8.0999027,93.436,93.39,3.2999283]
[1772656222086,8.0999027,93.436,93.381,7.21126237]
[1772656223182,8.0999027,93.436,93.39,16.88696951]
[1772656223889,8.0999027,93.436,93.393,9.633]
[1772656224779,3.2999283,93.43,93.391,7.24219626]
[1772656225686,3.2999283,93.43,93.385,9.634]
[1772656225687,11.399831,93.43,93.385,9.634]
[1772656226480,11.399831,93.43,93.393,9.633]
[1772656226988,11.87329821,93.44,93.393,9.633]
[1772656227290,11.87329821,93.44,93.389,8.04961627]
[1772656227291,3.2999283,93.43,93.389,8.04961627]
[1772656228489,3.2999283,93.43,93.392,9.633]
[1772656228682,8.57336991,93.429,93.392,9.633]
[1772656230590,8.57336991,93.429,93.386,8.00850425]
[1772656232389,8.57336991,93.429,93.388,9.633]
[1772656233088,8.57336991,93.429,93.388,17.58334761]
[1772656233887,8.57336991,93.429,93.394,9.633]
[1772656236196,3.2999283,93.44,93.394,9.633]
[1772656236801,3.2999283,93.42,93.383,50.0]
[1772656237098,13.10623941,93.477,93.383,50.0]
[1772656237099,3.2999283,93.44,93.384,7.89891533]
[1772656237295,8.57336991,93.443,93.391,7.89804402]
[1772656237496,3.2999283,93.45,93.393,7.89804402]
[1772656238496,10.6,93.449,93.408,9.631]
[1772656239498,10.6,93.449,93.413,7.36294818]
[1772656239700,10.6,93.449,93.421,7.34531488]
[1772656240295,10.6,93.449,93.409,9.631]
[1772656240498,3.2999283,93.43,93.392,7.30542062]
[1772656240692,3.2999283,93.42,93.377,7.30542062]
[1772656240898,3.2999283,93.42,93.303,26.58503724]
[1772656240899,3.2999283,93.4,93.362,7.27920222]
[1772656241201,3.2999283,93.41,93.362,7.27920222]
[1772656242096,3.2999283,93.41,93.37,9.635]
[1772656242500,8.57336991,93.417,93.37,9.635]
[1772656243903,3.2999283,93.41,93.363,7.1738782]
[1772656245298,8.57336991,93.417,93.363,7.1738782]
[1772656245504,8.57336991,93.417,93.365,7.1738958]
[1772656246101,8.57336991,93.417,93.368,7.35196361]
[1772656247304,8.57336991,93.436,93.381,7.34484646]
[1772656247607,3.2999283,93.43,93.381,7.34484646]
[1772656248006,8.57336991,93.429,93.381,7.34484646]
[1772656248405,8.57336991,93.429,93.382,9.634]
[1772656248800,3.2999283,93.42,93.37,3.2999283]
[1772656248999,3.2999283,93.41,93.373,9.635]
[1772656249511,7.90463296,93.419,93.387,9.633]
[1772656250210,7.90463296,93.419,93.379,9.634]
[1772656251011,7.90463296,93.419,93.386,9.634]
[1772656252508,7.90463296,93.419,93.378,9.634]
[1772656253612,7.90463296,93.419,93.374,6.46932718]
[1772656255012,7.90463296,93.419,93.378,6.4172198]
[1772656256513,7.90463296,93.419,93.381,9.634]
[1772656257309,7.90463296,93.419,93.378,6.4172198]
[1772656257515,7.90463296,93.419,93.361,6.45782495]
[1772656257711,7.90463296,93.419,93.363,6.45782495]
[1772656258518,7.90463296,93.419,93.37,3.2999283]
[1772656258714,7.90463296,93.419,93.371,6.33547772]
[1772656259523,7.90463296,93.419,93.376,9.634]
[1772656266530,7.90463296,93.419,93.382,9.634]
[1772656268632,7.90463296,93.419,93.374,9.635]
[1772656270040,7.90463296,93.419,93.38,9.634]
[1772656274448,7.90463296,93.419,93.373,15.81631834]
[1772656274650,7.90463296,93.399,93.345,6.14677288]
[1772656274849,7.90463296,93.389,93.345,6.14677288]
[1772656275749,7.90463296,93.416,93.365,6.14224939]
[1772656276449,7.90463296,93.416,93.368,9.635]
[1772656277642,3.2999283,93.41,93.368,9.635]
[1772656278451,3.30096186,93.41,93.368,9.635]
[1772656279452,10.95495677,93.41,93.368,9.635]
[1772656279854,10.95495677,93.41,93.365,6.14224939]
[1772656280052,7.65399491,93.409,93.365,6.14224939]
[1772656280247,7.65399491,93.409,93.337,50.0]
[1772656280248,3.30096186,93.39,93.35,6.51086745]
[1772656280453,7.65399491,93.389,93.35,6.51086745]
[1772656280749,3.30096186,93.38,93.342,6.51086745]
[1772656280952,3.30096186,93.38,93.289,26.58503724]
[1772656280953,3.30096186,93.37,93.327,6.50695352]
[1772656281349,3.30096186,93.37,93.33,9.639]
[1772656281850,3.30096186,93.37,93.327,6.50695352]
[1772656282649,3.30096186,93.35,93.312,6.69450614]
[1772656282952,10.95495677,93.35,93.3,6.69060212]
[1772656283152,3.30096186,93.34,93.3,6.69060212]
[1772656283550,7.65399491,93.349,93.3,6.69060212]
[1772656283754,3.30096186,93.34,93.3,6.69060212]
[1772656284146,7.65399491,93.349,93.3,6.69060212]
[1772656284350,3.30096186,93.36,93.311,9.641]
[1772656284654,7.65399491,93.359,93.311,9.641]
[1772656285151,3.30096186,93.35,93.311,9.641]
[1772656285454,3.30096186,93.35,93.303,6.57997838]
[1772656285655,7.65399491,93.349,93.303,6.57997838]
[1772656286546,3.30096186,93.36,93.311,6.59594781]
[1772656287354,3.30096186,93.36,93.312,9.641]
[1772656287557,3.30096186,93.36,93.312,16.24308982]
[1772656288150,7.47246573,93.365,93.318,6.6231141]
[1772656288356,7.47246573,93.365,93.32,9.92407596]
[1772656288552,7.47246573,93.365,93.32,6.6231141]
[1772656288949,3.30096186,93.36,93.32,6.6231141]
[1772656289154,3.30096186,93.35,93.301,6.61923454]
[1772656289560,7.47246573,93.359,93.301,6.61923454]
[1772656290355,7.47246573,93.359,93.317,9.641]
[1772656291855,7.47246573,93.359,93.323,9.64]
[1772656292059,3.30096186,93.37,93.323,9.64]
[1772656292460,7.47246573,93.369,93.323,9.64]
[1772656292659,3.30096186,93.36,93.323,9.64]
[1772656292857,9.93491248,93.407,93.301,50.0]
[1772656292858,3.30096186,93.35,93.304,6.63976112]
[1772656293161,7.47246573,93.359,93.304,6.63976112]
[1772656293363,7.47246573,93.359,93.314,9.641]
[1772656293864,3.30096186,93.34,93.306,6.63958365]
[1772656295264,3.30096186,93.35,93.307,16.27831633]
[1772656297164,7.47246573,93.359,93.307,16.27831633]
[1772656299464,3.30096186,93.35,93.307,16.27831633]
[1772656301067,7.47246573,93.359,93.307,16.27831633]
[1772656301968,3.30096186,93.35,93.299,9.642]
[1772656302267,7.47246573,93.349,93.301,6.18833701]
[1772656302871,7.47246573,93.349,93.301,15.83033701]
[1772656303265,7.47246573,93.349,93.302,6.18532277]
[1772656303767,7.47246573,93.339,93.29,3.30096186]
[1772656303968,7.47246573,93.329,93.275,6.18241834]
[1772656304570,7.47246573,93.329,93.292,9.643]
[1772656305469,7.47246573,93.329,93.266,1.86484683]
[1772656305663,3.30096186,93.31,93.251,6.15553159]
[1772656305866,7.47246573,93.299,93.256,1.8650967]
[1772656306064,7.47246573,93.299,93.251,6.15553159]
[1772656307476,7.47246573,93.299,93.254,6.07917006]
[1772656309383,10.94288854,93.31,93.254,6.07917006]
[1772656309582,7.64192668,93.309,93.254,6.07917006]
[1772656310577,7.64192668,93.309,93.257,5.66848044]
[1772656310981,7.64192668,93.309,93.259,9.647]
[1772656311182,7.64192668,93.309,93.259,15.31286883]
[1772656311383,7.64192668,93.309,93.26,5.66586883]
[1772656311572,10.94288854,93.32,93.261,5.66586883]
[1772656311777,7.64192668,93.319,93.261,5.66586883]
[1772656312075,3.30096186,93.31,93.261,5.66586883]
[1772656312277,10.94288854,93.31,93.261,5.66586883]
[1772656312472,10.94288854,93.31,93.262,9.646]
[1772656312684,10.94288854,93.31,93.263,5.67846912]
[1772656312876,7.64192668,93.309,93.263,5.67846912]
[1772656313180,7.64192668,93.299,93.236,1.86565164]
[1772656313374,7.89435151,93.339,93.227,5.67592236]
[1772656313375,3.30096186,93.26,93.227,5.67592236]
[1772656313574,7.64192668,93.279,93.177,19.311]
[1772656313575,7.64192668,93.279,93.231,5.67592236]
[1772656313778,3.30096186,93.29,93.231,5.67592236]
[1772656313974,3.30096186,93.29,93.24,8.96555515]
[1772656314172,7.64192668,93.293,93.25,3.30096186]
[1772656314374,7.64192668,93.289,93.241,9.649]
[1772656315179,3.30096186,93.28,93.234,5.4071134]
[1772656315376,7.64192668,93.289,93.241,5.40481387]
[1772656316484,7.64192668,93.289,93.244,9.648]
[1772656316681,7.64192668,93.289,93.241,5.40481387]
[1772656317573,7.64192668,93.279,93.232,9.649]
[1772656317774,7.64192668,93.279,93.232,14.79328198]
[1772656318078,7.64192668,93.279,93.232,5.14428198]
[1772656318380,7.64192668,93.279,93.24,9.649]
[1772656319080,3.30096186,93.29,93.241,5.21642374]
[1772656319278,10.94288854,93.29,93.241,5.21642374]
[1772656319478,7.64192668,93.289,93.241,5.21642374]
[1772656320174,7.64192668,93.289,93.244,9.648]
[1772656320983,7.64192668,93.304,93.251,4.8380828]
[1772656321179,7.64192668,93.299,93.24,3.30096186]
[1772656321476,7.64192668,93.289,93.241,50.0]
[1772656321681,3.30096186,93.28,93.241,50.0]
[1772656321882,3.30096186,93.27,93.231,50.0]
[1772656322585,7.64192668,93.279,93.231,50.0]
[1772656323486,7.64192668,93.279,93.233,9.649]
[1772656325185,7.64192668,93.279,93.237,9.649]
[1772656326788,7.64192668,93.259,93.206,4.85971266]
[1772656326988,7.64192668,93.239,93.181,4.85971266]
[1772656327183,3.30096186,93.22,93.181,4.85971266]
[1772656328088,3.30096186,93.23,93.181,4.85971266]
[1772656329085,7.64192668,93.239,93.191,4.86611155]
[1772656330291,7.64192668,93.239,93.194,3.920276]
[1772656330685,7.64192668,93.239,93.166,1.86700287]
[1772656330686,3.30096186,93.23,93.182,9.655]
[1772656331396,3.30096186,93.23,93.183,3.91078785]
[1772656331594,3.30096186,93.23,93.185,3.91078785]
[1772656332696,7.64192668,93.219,93.168,3.47491561]
[1772656332893,7.64192668,93.189,93.14,3.47324953]
[1772656333094,3.30096186,93.16,93.126,1.86738357]
[1772656333397,3.30096186,93.16,93.116,9.661]
[1772656333895,3.30096186,93.15,93.105,1.86834102]
[1772656334893,3.30096186,93.14,93.105,1.86834102]
[1772656335399,3.30096186,93.14,93.088,3.34653306]
[1772656335400,7.64192668,93.149,93.09,3.30096186]
[1772656335794,7.64192668,93.149,92.998,19.72880613]
[1772656335795,7.64192668,93.139,93.072,3.34660972]
[1772656335989,7.64192668,93.139,93.012,19.345]
[1772656335990,7.64192668,93.139,93.081,3.71334856]
[1772656336195,7.64192668,93.139,93.09,3.30096186]
[1772656337499,7.64192668,93.139,93.081,3.71334856]
[1772656338194,7.64192668,93.197,93.101,3.72095941]
[1772656338395,7.64192668,93.159,93.101,3.72095941]
[1772656338696,7.64192668,93.159,93.1,3.31975631]
[1772656339295,7.64192668,93.159,93.11,3.31975631]
[1772656339499,7.64192668,93.159,93.12,3.31975631]
[1772656340002,7.64192668,93.159,93.11,3.31975631]
[1772656341899,7.64192668,93.159,93.1,3.71570631]
[1772656342101,7.64192668,93.159,93.11,3.31975631]
[1772656342295,7.74684196,93.176,93.13,3.31975631]
[1772656342601,9.88319341,93.254,93.069,50.0]
[1772656342602,7.74684196,93.199,93.16,3.31975631]
[1772656342805,7.74684196,93.219,93.18,3.31975631]
[1772656343194,7.74684196,93.219,93.148,9.658]
[1772656343195,7.74684196,93.219,93.17,3.31975631]
[1772656343501,7.74684196,93.219,93.18,3.31975631]
[1772656344104,7.74684196,93.236,93.19,3.31975631]
[1772656344300,7.74684196,93.236,93.2,3.31975631]
[1772656344602,7.74684196,93.236,93.181,3.39811121]
[1772656345504,7.74684196,93.256,93.181,3.39811121]
[1772656346299,7.74684196,93.256,93.183,3.50935071]
[1772656346696,7.74684196,93.256,93.184,13.16208597]
[1772656347001,7.74684196,93.256,93.201,3.50808597]
[1772656347797,7.74684196,93.256,93.205,9.652]
[1772656348001,7.74684196,93.256,93.201,3.50808597]
[1772656348604,7.74684196,93.256,93.171,3.42719212]
[1772656349307,7.74684196,93.256,93.17,8.28101762]
[1772656349308,7.74684196,93.256,93.188,3.42613875]
[1772656351503,7.74684196,93.256,93.189,9.654]
[1772656351905,7.74684196,93.256,93.188,3.42613875]
[1772656352805,7.74684196,93.256,93.178,9.655]
[1772656353710,7.74684196,93.256,93.17,8.28101762]
[1772656353711,7.74684196,93.256,93.187,3.25493637]
[1772656354509,7.74684196,93.256,93.19,3.2634784]
[1772656355410,7.74684196,93.256,93.191,9.654]
[1772656355607,7.74684196,93.256,93.193,3.25499822]
[1772656356710,7.74684196,93.256,93.201,9.653]
[1772656357407,7.74684196,93.256,93.194,50.0]
[1772656358006,7.74684196,93.256,93.196,9.653]
[1772656358201,7.74684196,93.256,93.194,50.0]
[1772656359006,7.74684196,93.256,93.197,9.653]
[1772656359802,7.74684196,93.256,93.205,9.652]
[1772656360003,7.74684196,93.256,93.17,8.28101762]
[1772656360004,7.3724555,93.278,93.211,3.29963971]
[1772656360510,7.3724555,93.318,93.244,9.648]
[1772656360911,7.3724555,93.299,93.211,3.29869436]
[1772656362413,7.3724555,93.299,93.226,9.65]
[1772656363917,7.3724555,93.296,93.217,3.26672274]
[1772656365414,7.3724555,93.296,93.217,12.91772274]
[1772656366109,7.3724555,93.296,93.191,50.0]
[1772656366110,7.3724555,93.259,93.191,50.0]
[1772656366315,7.3724555,93.259,93.192,50.0]
[1772656367819,7.3724555,93.259,93.19,9.654]
[1772656368718,7.3724555,93.259,93.191,3.26176412]
[1772656370521,7.3724555,93.259,93.194,3.22392393]
[1772656373623,7.3724555,93.259,93.196,3.20003815]
[1772656374523,3.31324655,93.24,93.196,3.20003815]
[1772656375021,3.31324655,93.24,93.19,3.31324655]
[1772656375022,3.31324655,93.24,93.198,3.19830616]
[1772656375224,3.31324655,93.25,93.201,3.19830616]
[1772656376525,3.31324655,93.25,93.201,12.85130616]
[1772656376818,3.31324655,93.23,93.185,53.18964531]
[1772656377123,3.31324655,93.23,93.18,3.31324655]
[1772656377124,3.31324655,93.23,93.189,3.18914961]
[1772656378424,3.31324655,93.24,93.189,3.18914961]
[1772656378922,3.31324655,93.24,93.193,3.18552569]
[1772656379122,7.17684569,93.249,93.193,3.18552569]
[1772656379325,7.17684569,93.249,93.195,3.18560139]
[1772656380521,7.17684569,93.249,93.201,9.653]
[1772656381520,3.31324655,93.26,93.207,3.18825239]
[1772656381724,7.17684569,93.259,93.207,3.18825239]
[1772656382125,3.31324655,93.25,93.207,3.18825239]
[1772656383424,10.49009224,93.25,93.207,3.18825239]
[1772656383820,7.17684569,93.239,93.18,3.31324655]
[1772656384026,3.31324655,93.22,93.181,50.0]
[1772656384226,3.31324655,93.22,93.182,50.0]
[1772656385127,7.17684569,93.229,93.189,9.654]
[1772656385423,3.31324655,93.22,93.182,50.0]
[1772656385727,7.17684569,93.229,93.182,50.0]
[1772656386827,7.17684569,93.229,93.184,9.654]
[1772656387023,7.17684569,93.229,93.185,3.560884]
[1772656388525,7.17684569,93.246,93.191,3.56352024]
[1772656388830,7.92535145,93.259,93.22,3.31324655]
[1772656389030,7.17684569,93.29,93.24,3.31324655]
[1772656389327,7.17684569,93.289,93.231,3.5630438]
[1772656389627,7.17684569,93.279,93.231,3.5630438]
[1772656390827,7.97414494,93.292,93.231,3.5630438]
[1772656391027,7.97414494,93.293,93.231,3.5630438]
[1772656391227,7.17684569,93.293,93.231,3.5630438]
[1772656392427,7.17684569,93.293,93.239,9.649]
[1772656392630,7.17684569,93.293,93.231,3.5630438]
[1772656392932,7.17684569,93.293,93.238,9.649]
[1772656393327,7.17684569,93.293,93.231,3.5630438]
[1772656394528,7.17684569,93.293,93.239,9.649]
[1772656395430,7.17684569,93.293,93.232,3.58006377]
[1772656396432,7.17684569,93.293,93.234,9.649]
[1772656396731,7.17684569,93.293,93.234,13.2397644]
[1772656398432,7.17684569,93.293,93.234,3.5907644]
[1772656399729,7.06818059,93.289,93.219,3.56199267]
[1772656400937,7.06818059,93.289,93.213,50.0]
[1772656401643,7.06818059,93.289,93.214,3.5647321]
[1772656402046,7.06818059,93.286,93.214,3.5647321]
[1772656402242,7.06818059,93.285,93.214,3.5647321]
[1772656403645,7.06818059,93.279,93.201,50.0]
[1772656403843,7.06818059,93.269,93.201,50.0]
[1772656404044,7.06818059,93.266,93.197,3.5656597]
[1772656404845,7.06818059,93.265,93.197,3.5656597]
[1772656406841,7.72569918,93.263,93.185,9.654]
[1772656407038,7.72569918,93.256,93.186,3.79027342]
[1772656408651,7.72569918,93.255,93.186,3.79027342]
[1772656410451,3.31333015,93.24,93.186,3.79027342]
[1772656410748,7.72569918,93.255,93.21,3.31333015]
[1772656411051,7.72569918,93.255,93.21,7.10200493]
[1772656412552,9.89167605,93.286,93.192,3.78068971]
[1772656412553,7.72569918,93.249,93.192,3.78068971]
[1772656412752,7.72569918,93.249,93.201,3.78068971]
[1772656412947,3.31333015,93.26,93.203,3.78009591]
[1772656413644,7.72569918,93.259,93.203,3.78009591]
[1772656413842,7.96096448,93.281,93.24,3.31333015]
[1772656414044,7.96096448,93.281,93.169,200.211]
[1772656414045,7.72569918,93.305,93.25,3.31333015]
[1772656414646,7.72569918,93.299,93.241,3.77947687]
[1772656415949,7.72569918,93.299,93.25,3.31333015]
[1772656416261,183.70339685,93.31,93.26,3.31333015]
[1772656416648,180.3900667,93.31,93.261,3.8284154]
[1772656419253,180.3900667,93.31,93.27,3.31333015]
[1772656419953,180.3900667,93.31,93.272,9.645]
[1772656420152,7.72569918,93.331,93.28,3.31333015]
[1772656420558,7.72569918,93.329,93.273,3.8187984]
[1772656420760,7.72569918,93.329,93.275,9.645]
[1772656421951,7.72569918,93.329,93.277,9.645]
[1772656422756,3.31333015,93.32,93.276,3.77692819]
[1772656423457,7.72569918,93.329,93.276,3.77692819]
[1772656424156,3.31333015,93.32,93.276,3.77692819]
[1772656425350,7.72569918,93.319,93.276,3.77692819]
[1772656425550,3.31333015,93.31,93.276,3.77692819]
[1772656426161,7.72569918,93.319,93.276,3.77692819]
[1772656428857,3.31333015,93.3,93.243,3.62963358]
[1772656429161,7.19334396,93.309,93.261,3.6311639]
[1772656429462,7.19334396,93.309,93.263,3.6311639]
[1772656429961,7.19334396,93.309,93.266,9.646]
[1772656433857,7.19334396,93.323,93.282,9.644]
[1772656436460,3.31333015,93.32,93.282,9.644]
[1772656437361,3.31333015,93.32,93.28,3.59025991]
[1772656437558,3.31333015,93.32,93.212,19.72880613]